[Event "Svetozar Gligoric Masters 2022"]
[Site "Belgrade"]
[Date "2022.07.19"]
[Round "3.5"]
[White "Arjun Kalyan"]
[Black "Rohith Krishna S"]
[Result "0-1"]
[ECO "B67"]
[WhiteElo "2499"]
[BlackElo "2326"]
[Annotator "TA"]
[PlyCount "134"]
[EventDate "2022.07.18"]
[EventCountry "SRB"]
[SourceTitle "playchess.com"]
[Source "ChessBase"]
[SourceQuality "1"]
[TimeControl "40/5400+30:900+30"]

{[%evp 16,134,39,19,28,28,49,35,58,31,46,31,34,20,12,-6,40,45,51,48,59,45,53,13,77,41,134,29,33,31,38,0,0,6,0,4,2,5,5,0,76,79,152,99,85,85,82,67,76,70,54,35,9,0,0,0,0,0,0,0,0,0,0,-27,-10,-8,-6,-12,-11,-9,0,-111,0,-161,-172,-268,-262,-245,-223,-291,-262,-281,-286,-614,-602,-621,-595,-1185,-613,-773,-754,-740,-699,-598,-443,-999,-844,-29979,-29980,-29963,-29965,-4129,-1238,-1213,-1173,-1163,-1108,-983,-961,-1050,-1004,-6474,-10318,-6083,-6418,-29969,-29970,-29985,-29986,-29986,-29987]} 1. e4 c5 2. Nf3 d6 3. d4 cxd4 4. Nxd4 Nf6 5. Nc3 Nc6 6. Bg5 e6 7. Qd2 a6 8. O-O-O Bd7 9. Kb1 h6 {B67: Sicilian: Richter-Rauzer: 7...a6 8 0-0-0 Bd7, lines without 9 f4 Be7.} 10. Be3 Be7 11. f3 h5 {White is slightly better.} 12. Nxc6 Bxc6 13. Bg5 b5 14. h4 Qb6 15. Bd3 Rc8 (15... b4 $11 {is superior.} 16. Ne2 O-O) 16. Ne2 $14 {[#]} Bb7 $146 ({Predecessor:} 16... Bd7 17. Ng3 b4 18. Rhe1 e5 19. Nf5 Bxf5 20. exf5 O-O 21. g4 Rc7 22. Bxf6 Bxf6 {½-½ (62) Ibarra Jerez,J (2545)-Dourerassou,J (2414) Chess.com INT 2015}) 17. c3 Nd7 18. Bxe7 Kxe7 19. Qg5+ Nf6 (19... Kf8 $11) 20. Nf4 (20. Qxg7 $2 Rcg8 21. Qg5 Rxg5 $19) 20... Rhg8 ({Better is} 20... Kf8 $14) 21. Rd2 (21. Nxh5 $16 Rc5 22. Nxf6 Rxg5 23. Nxg8+ Kf8 24. hxg5 Kxg8 25. Bc2) 21... Rc5 $11 22. Qg3 g5 23. hxg5 (23. Nh3 $5 {[%cal Rh4g5]}) 23... Rcxg5 24. Qh2 e5 {...Qe3 is the strong threat.} 25. Nh3 Rg3 26. Rhd1 {next Bf1 is good for White.} Bc8 27. Ng1 Be6 {[#]} (27... h4 $1 $11) 28. Bf1 $1 $16 R3g5 (28... Bc4 $142) 29. Ne2 (29. Rxd6 $142 Qc5 30. R6d2 (30. Rxa6 Qf2 $16)) 29... Qa5 30. Nc1 Ne8 31. Bd3 {[%cal Bf1d3,Bd3c2,Bc2b3][%mdl 32]} (31. Qg1 {with more complications.} Kf8 32. Qa7 R5g6 33. Nb3) 31... Kf8 32. Bc2 Qb6 33. Bb3 Bc4 34. f4 exf4 35. Qxf4 R8g6 36. Bxc4 bxc4 37. Rf1 {[%csl Gf1][%cal Rf4f7]} Qb7 38. Rdf2 {[%cal Rf4f7]} Rg7 39. e5 dxe5 40. Qxc4 Rxg2 41. Nd3 {Black must now prevent Nc5.} Rxf2 42. Rxf2 ({Don't play} 42. Qc5+ Kg8 43. Rxf2 Qe4 $17) 42... Qb6 43. Qe4 (43. Kc2 $11 {keeps the balance.}) 43... f6 (43... Rg3 $17 {[%cal Og3d3] Threatens to win with ...Rxd3!} 44. Rf1 (44. Qh7 Nf6 $17) 44... Qe3 45. Qxe3 Rxe3) 44. Qf5 {White is now going downhill.} (44. Kc2 $11 {and White is okay.}) 44... Qe3 $19 {aiming for ...Rg5.} 45. Rf1 (45. Kc2 $142) 45... Rg5 46. Qh7 Rg2 {[%cal Oh5h4]} 47. Qh8+ Ke7 {Chess con chili.} 48. Qh7+ Ng7 {[%cal Of6f5]} 49. Ka1 $2 (49. Re1 Qf3 50. a3) 49... Rg1 50. Rb1 Kf7 {Hoping for ...e4.} 51. Nb4 f5 52. a3 a5 53. Nc2 Rxb1+ 54. Kxb1 {[%mdl 4096] Endgame KQN-KQN} Qd2 {And now ...Qd1+ would win.} 55. Na1 (55. b4 $142 Qxc3 56. Kc1) 55... e4 56. Nb3 Qd1+ 57. Ka2 e3 58. Nd4 {[#]} Qxd4 $3 {[%mdl 512]} 59. cxd4 e2 60. d5 e1=Q 61. Qh6 Qe5 62. Qc6 Ne8 63. b4 axb4 64. axb4 h4 {[%cal Bh5h4,Bh4h3][%mdl 32] ( -> ...h3)} 65. Qd7+ Kg6 {Black mates.} 66. b5 h3 67. Qc6+ Nd6 {Weighted Error Value: White=0.63/Black=0.41} 0-1

[Event "Svetozar Gligoric Masters 2022"]
[Site "Belgrade"]
[Date "2022.07.19"]
[Round "3.9"]
[White "Chitlange Sakshi"]
[Black "Nitish Belurkar"]
[Result "0-1"]
[ECO "D27"]
[WhiteElo "2216"]
[BlackElo "2460"]
[Annotator "TA"]
[PlyCount "138"]
[EventDate "2022.07.18"]
[EventCountry "SRB"]
[SourceTitle "playchess.com"]
[Source "ChessBase"]
[SourceQuality "1"]
[TimeControl "40/5400+30:900+30"]

{[%evp 24,138,12,15,16,22,31,18,18,21,35,37,35,34,39,0,0,0,0,0,0,0,0,-6,0,0,0,0,0,0,0,0,0,0,0,0,0,0,0,0,0,0,7,10,63,62,122,0,0,-9,-7,-9,-11,-9,-9,-42,-23,-40,-40,-51,-29,-50,-41,-41,-14,-22,-26,-31,-22,-31,0,-12,-12,-13,-13,-12,-12,-10,-8,-8,-8,-8,-8,-8,-8,-72,-8,-8216,-5593,-3529,-5154,-5193,-6498,-6311,-5143,-4857,-5086,-3317,-2583,-29962,-29963,-29960,-29957,-29978,-29978,-29981,-29982,-29982,-29983,-29983,-29984,-29984,-29985,-29985,-29986,-29986,-29987]} 1. d4 Nf6 2. c4 e6 3. Nf3 d5 4. Nc3 dxc4 5. e3 a6 6. a4 c5 7. Bxc4 Nc6 8. O-O Be7 9. Qe2 cxd4 10. Rd1 e5 11. exd4 exd4 12. Nxd4 Nxd4 13. Qe5 O-O {D27: Queen's Gambit Accepted: Classical main line: 7 e4!? and 7 a4.} 14. Rxd4 Qb6 {Strongly threatening ...Bc5.} 15. a5 Qc5 {The position is equal.} 16. Bf4 Ng4 17. Qxc5 Bxc5 18. Rd2 Be6 19. Bxe6 fxe6 20. Bg3 Rad8 21. Rad1 Rxd2 22. Rxd2 Nf6 {[#]} 23. Rd1 $146 ({Predecessor:} 23. Bc7 Rc8 24. Rd8+ Rxd8 25. Bxd8 Kf7 26. Kf1 Ke8 27. Bxf6 gxf6 28. Ne4 Be7 29. Ke2 {½-½ (46) Coleman,J (2211)-Buckley,M (2130) Edinburgh 2003}) 23... Kf7 24. Bd6 Rc8 25. Kf1 Rc6 26. Bxc5 Rxc5 $11 {[%mdl 4096] Endgame KRN-KRN} 27. Rd6 Ke7 28. Rb6 Rc7 29. Ke2 Nd7 30. Rb4 Ne5 31. Re4 Kd6 32. Rd4+ Kc5 33. Rh4 Nc6 (33... h6 $11) 34. Rxh7 $14 Kb4 (34... Nxa5 $14 35. h4 Kb6) 35. Rh3 ({White should play} 35. h4 $16) 35... Kxa5 $11 36. Rh4 b5 {[%cal Bb7b5,Bb5b4][%mdl 32]} 37. Re4 b4 38. Nb1 Kb5 39. h4 a5 40. h5 a4 41. g4 Rd7 42. g5 Rd5 43. f4 Nd4+ 44. Kf2 Kc4 45. Ke3 $1 ({But not} 45. h6 gxh6 46. gxh6 Rh5 $17) 45... Kc5 46. Kf2 Kd6 47. h6 gxh6 48. gxh6 {[%cal Oe4e5] [#] aiming for Re5!} Nc6 {Prevents Re5. Threatens to win with ...Rh5.} 49. f5 $1 Rxf5+ 50. Kg3 Rh5 51. Rh4 Rxh4 52. Kxh4 {KN-KN} Ne5 53. h7 Nf7 54. Kg4 {[#]} (54. Nd2 $11 {remains equal.}) 54... Ke5 (54... Kd5 $1 $17 {...e5 is the strong threat.} 55. Kh5 e5) 55. Kf3 $2 {[%mdl 8192] This move loses the game for White.} (55. Nd2 $11) 55... Ng5+ $19 56. Ke3 Nxh7 57. Kd3 Kd5 58. Nd2 Nf6 {White must now prevent ...Nd7.} 59. Nc4 Nd7 60. Ne3+ Kc5 {( -> ...Ne5+)} 61. Ke4 {Against Ne5} Nb6 {Black mates.} 62. Kd3 e5 63. Ng4 Nc4 64. Kc2 Kd4 65. b3 Ne3+ 66. Nxe3 axb3+ ({Inferior is} 66... Kxe3 67. bxa4 Kf2 68. a5 $11) 67. Kd2 b2 68. Nf5+ Ke4 69. Nd6+ Kd5 {Weighted Error Value: White=0.19 (very precise) /Black=0.17 (very precise)} 0-1

[Event "Svetozar Gligoric Masters 2022"]
[Site "Belgrade"]
[Date "2022.07.19"]
[Round "3.10"]
[White "Stoyanov, Tsvetan"]
[Black "Petrovic, Aleksa"]
[Result "1-0"]
[ECO "B42"]
[WhiteElo "2450"]
[BlackElo "2230"]
[Annotator "TA"]
[PlyCount "75"]
[EventDate "2022.07.18"]
[EventCountry "SRB"]
[SourceTitle "playchess.com"]
[Source "ChessBase"]
[SourceQuality "1"]
[TimeControl "40/5400+30:900+30"]

{[%evp 15,75,0,33,20,27,-2,5,-3,0,-9,47,51,62,39,34,54,145,90,85,59,292,307,298,301,288,189,196,186,189,189,410,401,687,676,800,800,800,800,785,768,759,756,737,742,1092,1087,1073,1067,983,659,659,438,438,422,409,384,377,345,659,656,521,512]} 1. e4 c5 2. Nf3 e6 3. d4 cxd4 4. Nxd4 a6 5. Bd3 Nf6 6. Nc3 d6 7. O-O Be7 8. a4 b6 9. f4 {[%cal Bf2f4,Bf4f5][%mdl 32] B42: Sicilian: Kan Variation: 5 Bd3.} Bb7 10. Kh1 {Hoping for e5.} Nbd7 {Prevents e5.} 11. Qe2 {The position is equal.} Nc5 12. Bd2 {[#]} d5 $146 (12... Nxd3 $11 13. cxd3 O-O) ({Predecessor:} 12... O-O 13. Rf3 g6 14. Rff1 Nxd3 15. cxd3 Nd7 16. f5 exf5 17. exf5 Bf6 18. Nc2 Re8 {½-½ (34) Kalevic,S (2270)-Litinskaya,M (2330) Cetinje 1992}) 13. e5 $14 {Black must now prevent f5.} Nfe4 14. f5 $36 {[%mdl 2048] aiming for fxe6. White has the initiative.} (14. Bxe4 $5 dxe4 15. Be3 $11) 14... Nxd2 15. Qxd2 Qd7 ({Black should play} 15... exf5 $14 16. Nxf5 (16. Bxf5 g6 $11) 16... g6) 16. Nce2 {White is more active.} (16. Be2 $142) 16... g6 $16 17. b4 gxf5 $2 {This costs Black the game.} 18. bxc5 $18 bxc5 {[#]} 19. Nxf5 {[%mdl 512]} exf5 20. Qh6 (20. Bxf5 Qc6 21. Rab1 Rb8 $18) 20... Qc6 21. Qg7 O-O-O 22. Qxf7 ({But not} 22. Bxf5+ $6 Kb8 23. Qxf7 d4 $14) 22... d4 $2 (22... Rde8 23. Rab1 (23. Qxf5+ Kb8 $16) 23... Kb8) 23. Nf4 {Chess con chili.} Rhg8 (23... Rdg8 $142) 24. Qxe7 Rxg2 25. Bxf5+ Kb8 26. Qxd8+ Ka7 {[#]} 27. Qd5 $1 Qxd5 28. Nxd5 Bxd5 {[#]} 29. Be6 $1 Ba8 (29... Bb7 30. Bc8) 30. Rf7+ Kb6 31. Rb1+ Ka5 32. Rb8 Be4 {( -> ...Rg4+)} 33. Rf4 Rg4+ {[#]} 34. Rxe4 $1 Rxe4 35. Bf5 {[%csl LRe4,LRh7]} Rxe5 36. Bxh7 Rg5 $2 (36... c4 37. Rc8 Re7) 37. Bd3 Kxa4 38. Bxa6 {Weighted Error Value: White=0.14 (very precise) /Black=0.48} 1-0

[Event "Svetozar Gligoric Masters 2022"]
[Site "Belgrade"]
[Date "2022.07.19"]
[Round "3.11"]
[White "Neelash Saha"]
[Black "Srija, Seshadri"]
[Result "1-0"]
[ECO "C50"]
[WhiteElo "2446"]
[BlackElo "2208"]
[Annotator "TA"]
[PlyCount "61"]
[EventDate "2022.07.18"]
[EventCountry "SRB"]
[SourceTitle "playchess.com"]
[Source "ChessBase"]
[SourceQuality "1"]
[TimeControl "40/5400+30:900+30"]

{[%evp 9,61,0,22,15,18,23,18,6,7,0,0,0,0,0,42,-66,-29,-37,-18,-105,-8,-78,34,28,89,64,146,124,399,58,59,87,66,110,290,304,284,282,222,219,456,462,732,749,1847,1687,1681,1614,1640,1293,2093,1671,29985,2797]} 1. e4 e5 2. Nf3 Nc6 3. Bc4 Bc5 4. O-O Nf6 5. Re1 d6 6. h3 {C50: Hungarian Defence and Giuoco Pianissimo.} Bb6 7. d3 {[%cal Bd2d3,Bd3d4][%mdl 32]} h6 8. c3 {The position is equal.} g5 9. d4 g4 {[#]} 10. hxg4 $146 ({Predecessor:} 10. dxe5 gxf3 11. exf6 Qxf6 12. Qxf3 Qxf3 13. gxf3 Rg8+ 14. Kh2 Ne5 15. Be2 Bxf2 16. Rf1 {0-1 (28) Alothimen,R-Lopez,G (1914) Tornelo INT 2020}) 10... Bxg4 11. Bb5 {aiming for d5.} Nd7 12. Be3 (12. a4 $14 a6 13. Bxc6 bxc6 14. a5) 12... Qf6 {Hoping for ...exd4.} 13. Nbd2 Rg8 $1 {[%cal Re5d4]} 14. Kf1 (14. Bxc6 $11 bxc6 15. g3) 14... Qg6 (14... exd4 $17 15. cxd4 Nxd4) 15. Qa4 (15. Bxc6 $11 bxc6 16. Qa4) 15... Ncb8 (15... Bxf3 16. gxf3 f5 17. Bxc6 (17. Ke2 f4 $11) 17... bxc6 18. Qxc6 $11 (18. Ke2 f4 $11)) ({Black should play} 15... Ne7 $17 {Threatens to win with ...c6.} 16. Kg1 O-O-O) 16. Ke2 $14 c6 (16... a6 $11 {remains equal.}) 17. Bd3 $1 $16 Nf6 (17... a5 $14) 18. Rh1 {Nc4 is the strong threat.} Bh5 $2 {[%mdl 8192]} (18... Nh5 $16 {was called for.}) 19. Rag1 $2 ({White must play} 19. Nc4 $1 $18 {[%cal Rc4b6]} Bc7 20. Qb4 (20. dxe5 dxe5 21. Qb4 b6 $16)) 19... Nbd7 20. Nc4 Bc7 21. Qb4 $36 {[%csl LRb7,LRd6][%mdl 2048] White is on the roll.} d5 $2 {[#]} (21... O-O-O $16 {is a better defense.}) 22. exd5 $1 $18 (22. Qxb7 {[#]} Rb8 $1 23. Qxc7 dxc4 $11) ({Worse is} 22. Ncxe5 Nxe5 23. dxe5 dxe4 24. Qxb7 (24. exf6 exd3+ 25. Kd2 O-O-O $11) 24... exd3+ $11) 22... e4 {[#]} 23. Qxb7 $1 exd3+ 24. Kd2 {Really sharp!} Rb8 (24... Ne4+ $2 25. Kc1 Bxf3 26. Rxh6 $18) (24... cxd5 25. Qxa8+ Ke7 26. Qxa7 dxc4) 25. Qxc7 cxd5 (25... Nxd5 $142 26. Qxa7 Bxf3) 26. Nfe5 Qh7 27. Nd6+ Kf8 28. Nxd7+ Nxd7 29. b3 {Active counter play!} Bg4 30. Bxh6+ Ke7 {[#]} 31. Bg5+ $1 {[%mdl 512] Weighted Error Value: White=0.40/Black=0.89} 1-0

[Event "Svetozar Gligoric Masters 2022"]
[Site "Belgrade"]
[Date "2022.07.19"]
[Round "3.12"]
[White "Veselov, Yaroslav"]
[Black "Radovanovic, Nikola"]
[Result "1/2-1/2"]
[ECO "E60"]
[WhiteElo "2206"]
[BlackElo "2422"]
[Annotator "TA"]
[PlyCount "69"]
[EventDate "2022.07.18"]
[EventCountry "SRB"]
[SourceTitle "playchess.com"]
[Source "ChessBase"]
[SourceQuality "1"]
[TimeControl "40/5400+30:900+30"]

{[%evp 9,69,24,12,0,0,0,22,16,44,10,37,22,75,72,49,47,86,72,112,96,91,0,0,-4,-12,-23,0,-47,0,-99,-100,-147,-149,-134,-158,-172,-183,-196,-199,-172,0,0,0,0,0,0,0,0,0,-7,0,-164,-158,-196,-196,-196,-204,-183,0,0,0,55]} 1. d4 Nf6 2. c4 g6 3. h4 c5 4. d5 b5 5. cxb5 a6 6. e3 {E60: King's Indian: Unusual lines and Fianchetto Variation without Nc3.} Bg7 7. Nc3 d6 8. a4 {[%cal Ba2a4,Ba4b5][%mdl 32]} O-O {[#]} 9. Ra3 $146 ({Predecessor:} 9. Nf3 Bg4 10. Bc4 axb5 11. Bxb5 Nbd7 12. O-O Ne5 13. Be2 Bxf3 14. Bxf3 Qa5 15. Be2 {½-½ (80) Harsha,B (2489)-Hansen,E (2606) Chess.com INT 2021}) 9... e6 10. Nf3 Bb7 (10... axb5 $11 11. Bxb5 (11. axb5 Rxa3 12. bxa3 exd5 $11) 11... Bb7) 11. dxe6 $1 $16 fxe6 12. Be2 axb5 13. axb5 d5 14. O-O Nbd7 15. b4 (15. Rxa8 $16 Bxa8 16. b3) 15... cxb4 $11 16. Rxa8 Qxa8 17. Na4 Qa5 18. Ng5 (18. Bb2 Ra8 19. Qc1 Qxa4 $19) (18. Nd4 $1 $11 {is superior.}) 18... Re8 (18... Ra8 $15 19. Nb2 Nf8) 19. Bd3 {[#]} (19. Bb2 $11 {remains equal.}) 19... e5 $1 $17 {[%cal Be6e5,Be5e4][%mdl 32]} 20. Bd2 (20. e4 $142) 20... e4 21. Be2 h6 22. Nh3 Ra8 23. Nb2 Qa2 24. Bc1 Ne8 $2 (24... Nc5 $19 {And now ...Qb3 would win.} 25. Qd4 Nb3 26. Qxb4 Rc8) 25. Bc4 $11 {Inhibits Qb3.} dxc4 26. Qxd7 c3 ({But not} 26... Bxb2 27. Bxb2 Qxb2 28. Qxb7 $16) 27. Qxb7 {[%cal Ob2c4]} cxb2 28. Bxb2 Bxb2 29. Qxe4 b3 {White must now prevent ...Bg7.} 30. Nf4 $2 (30. Qe6+ $11 Kh7 31. h5 (31. Nf4 Bg7 $17)) 30... Bg7 $19 31. Qe6+ Kh7 {Strongly threatening ...Qc2.} ({And not} 31... Kh8 32. Nxg6+ Kh7 33. b6 $11) 32. Qxg6+ Kh8 33. Qf5 {[#]} b2 $2 (33... Nd6 $1 $19 {[%cal Rd6f5]} 34. Ng6+ Kh7 35. Nf8+ Kg8 36. Qd5+ Nf7) 34. Ng6+ $11 Kg8 ({Black should try} 34... Kh7 $11 35. Ne7+ Kh8 36. Ng6+ Kh7 37. Ne7+ Kh8 38. Ng6+) 35. Ne7+ {Weighted Error Value: White=0.28 (precise) /Black=0.21 (precise)} 1/2-1/2

[Event "Svetozar Gligoric Masters 2022"]
[Site "Belgrade"]
[Date "2022.07.19"]
[Round "3.18"]
[White "Lu, Miaoyi"]
[Black "Vaibhav Jayant Raut"]
[Result "1/2-1/2"]
[ECO "B80"]
[WhiteElo "2322"]
[BlackElo "2169"]
[Annotator "TA"]
[PlyCount "67"]
[EventDate "2022.07.18"]
[EventCountry "SRB"]
[SourceTitle "playchess.com"]
[Source "ChessBase"]
[SourceQuality "1"]
[TimeControl "40/5400+30:900+30"]

{[%evp 23,67,44,76,56,90,94,89,79,82,83,87,89,90,78,101,53,61,64,60,65,71,65,64,48,52,28,121,100,94,66,152,152,183,140,151,109,128,17,17,14,40,0,20,0,39,0]} 1. e4 c5 2. Nf3 e6 3. Nc3 a6 4. g3 Nc6 5. Bg2 Nf6 6. O-O Be7 7. d4 cxd4 8. Nxd4 Qc7 9. Re1 d6 10. Nxc6 bxc6 11. e5 dxe5 12. Rxe5 Bb7 13. Bf4 {[%cal Oe5e6] And now Rxe6! would win. B80: Sicilian Scheveningen: 6 g3 and 6 Be3, including English Attack.} Rd8 {[#]} 14. Rd5 Qc8 15. Rxd8+ {White is better.} Qxd8 16. Qxd8+ Kxd8 17. Rd1+ Kc8 {[#]} 18. Na4 $1 {[%cal Ra4b6]} Nd7 {Inhibits Nb6+.} 19. c4 {[#]} (19. Bd2 $16) 19... Rd8 $146 ({Predecessor:} 19... g5 20. Bd2 g4 21. Ba5 Rg8 22. Nb6+ Nxb6 23. Bxb6 c5 24. Bxb7+ Kxb7 25. Rd7+ Kxb6 26. Rxe7 {1-0 (55) Robak,Z (2217)-Kalmuk,K (1983) Sypniewo 2021}) 20. c5 e5 21. Be3 {Black must now prevent Bh3.} f5 22. h4 g6 23. b4 Kc7 24. Nb6 {Threatens to win with Nc4.} Nf6 (24... a5 $1 $11 {remains equal.}) 25. Rxd8 $16 {White is much more active.} Bxd8 26. Nc4 Ng4 (26... Nd5 $1 $14) 27. Bg5 e4 {Against Bf3} 28. Bf4+ Kd7 29. Nd6 Ba8 30. a4 (30. Bf1 $16) 30... Bf6 $11 {[%cal Oa6a5]} 31. Nc4 {Hoping for Nb6+.} Bb7 32. Nd6 Ba8 {[%cal Oa6a5]} 33. Nc4 {Nb6+ is the strong threat.} Bb7 34. f3 {Weighted Error Value: White=0.19 (very precise) /Black=0.19 (very precise)} 1/2-1/2

[Event "Svetozar Gligoric Masters 2022"]
[Site "Belgrade"]
[Date "2022.07.19"]
[Round "4.1"]
[White "Predke, Alexandr"]
[Black "Nitish Belurkar"]
[Result "1-0"]
[ECO "C02"]
[WhiteElo "2688"]
[BlackElo "2460"]
[Annotator "TA"]
[PlyCount "81"]
[EventDate "2022.07.18"]
[EventCountry "SRB"]
[SourceTitle "playchess.com"]
[Source "ChessBase"]
[SourceQuality "1"]
[TimeControl "40/5400+30:900+30"]

{[%evp 14,81,27,6,31,12,20,8,10,0,0,0,0,0,-3,-3,10,-6,7,0,0,0,0,0,33,12,19,0,0,-11,-3,-3,-3,-3,-3,-2,-3,-8,0,0,0,0,21,24,28,24,77,74,109,95,146,146,218,227,222,224,233,233,227,225,248,266,264,237,623,586,2021,1804,1825,2020]} 1. e4 e6 2. d4 d5 3. e5 c5 4. c3 Nc6 5. Nf3 Bd7 6. Be2 Nge7 {[%cal Bg8e7,Be7g6,Bg6h8,Bh8f7][%mdl 32]} 7. O-O Ng6 8. g3 Be7 {8...f6 is more advanced technology. C02: French: Advance Variation.} 9. h4 cxd4 10. cxd4 O-O {The position is equal.} 11. Na3 $5 {[%cal Bb1a3,Ba3c2,Bc2e1,Be1d3][%mdl 4] Leaves trodden paths.} f6 {[%cal Rf6e5]} 12. h5 Nh8 13. Nc2 Nf7 {[%cal Rf6e5] Against h6} 14. Bf4 {[#]} Rc8 $146 ({Predecessor:} 14... fxe5 15. dxe5 Ng5 16. Bxg5 Bxg5 17. Nfd4 Qb6 18. Kh1 Be7 19. f4 Rac8 20. Bg4 Nxd4 21. Nxd4 {½-½ (58) Arencibia Rodriguez,W (2485)-Pecorelli Garcia,H (2405) Matanzas 1994}) 15. Qd2 Qa5 16. Qxa5 (16. Qd3 {looks sharper.} Qb6 17. Rac1 a6 18. Kg2) 16... Nxa5 {[%cal Bc6a5,Ba5c4,Bc4a3][%mdl 32]} 17. Rfc1 Nc4 18. Nce1 Rc6 ({Don't play} 18... Nxb2 19. Rab1 $14) 19. Nd3 Rfc8 20. b4 fxe5 21. dxe5 Na3 22. Rxc6 Rxc6 23. Rc1 Rxc1+ 24. Bxc1 Nc4 25. Bd1 a5 26. bxa5 Nxa5 27. Nd4 Nc6 28. Nxc6 Bxc6 29. Bg4 Nd8 (29... Bd7 $11 {remains equal.}) 30. Be3 $16 Bd7 {[#]} 31. Nf4 $1 {White is more active.} Nc6 (31... Bg5 $142) 32. Nxd5 $1 ({But not} 32. Bxe6+ $6 Bxe6 33. Nxe6 Kf7 $11) 32... Nxe5 (32... exd5 $16 33. Bxd7 d4) 33. Nxe7+ $18 Kf7 {[#]} 34. Be2 Kxe7 {[%mdl 4096] Endgame [#] KBB-KBN} 35. Bd4 $1 Nc6 36. Bxg7 e5 37. Bd3 Kf7 38. h6 Be6 $2 (38... Nd4 39. f4 (39. Bxh7 Nf3+ 40. Kg2 Bc6 $11) 39... Nf5) 39. Bxh7 {Be4 is the strong threat. This bishop pair is nice. White is clearly winning.} Bxa2 40. Be4 {Hoping for Bh8.} Be6 41. Bh8 {Weighted Error Value: White=0.03 (flawless) /Black=0.29 (precise)} 1-0

[Event "Svetozar Gligoric Masters 2022"]
[Site "Belgrade"]
[Date "2022.07.19"]
[Round "4.2"]
[White "Pranav Vijay"]
[Black "Stoyanov, Tsvetan"]
[Result "1-0"]
[ECO "B96"]
[WhiteElo "2265"]
[BlackElo "2450"]
[Annotator "TA"]
[PlyCount "75"]
[EventDate "2022.07.18"]
[EventCountry "SRB"]
[SourceTitle "playchess.com"]
[Source "ChessBase"]
[SourceQuality "1"]
[TimeControl "40/5400+30:900+30"]

{[%evp 16,75,0,7,0,0,16,10,15,7,9,0,19,2,61,0,0,0,0,0,3,10,15,4,8,0,19,9,10,0,52,7,102,14,60,68,64,40,32,14,10,0,44,30,30,0,31,25,151,161,155,154,231,213,223,202,355,361,800,820,1237,612]} 1. e4 c5 2. Nf3 d6 3. d4 cxd4 4. Nxd4 Nf6 5. Nc3 a6 6. Bg5 e6 7. f4 h6 8. Bh4 Qb6 9. a3 Be7 {[%cal Of6e4] B96: Sicilian Najdorf: 6 Bg5 e6 7 f4, lines other than 7...Qb6 and 7...Be7.} (9... Qxb2 $2 10. Na4 Qxa1 11. Qxa1 $18) 10. Bf2 {[%cal Od4e6] And now Nxe6! would win.} Qc7 (10... Qxb2 $2 11. Na4 Qxa1 12. Qxa1 $18) 11. Qf3 Nbd7 {The position is equal.} 12. O-O-O $1 b5 13. g4 Bb7 14. Bg2 {14.Bg2 has become a bit dusty these days.} g5 (14... Rc8 $11) 15. h4 {15.f5 is vanishing.} ({Better is} 15. f5 $1 $14) 15... gxf4 $11 16. g5 ({Much worse is} 16. Qxf4 e5 17. Qf5 exd4 $17) 16... Ne5 17. Qxf4 hxg5 18. hxg5 Rxh1 19. Rxh1 Nfd7 20. Kb1 Nf8 {[#] Inhibits Rh7.} 21. Qg3 $146 ({Wrong is} 21. Rh8 $2 Neg6 22. Rxf8+ Bxf8 $19) ({Predecessor:} 21. Rh6 Rb8 22. Qg3 Ba8 23. Rh8 b4 24. axb4 Rxb4 25. g6 Nexg6 26. Nxe6 Qb8 27. Ng7+ Kd8 28. Ne6+ Ke8 {0-1 (28) Yavdosiuk,S-Bronnikov,A (2197) ICCF email 2018}) 21... O-O-O 22. Rd1 {[%cal Bh1d1,Bd1d3,Bd3g3][%mdl 32]} Nfg6 (22... Kb8 $11) 23. Bf1 (23. Bh3 $5 {[%cal Rc3d5]}) 23... Nc6 {[#]} (23... Kb8 $11) 24. Qg1 (24. a4 $1 $16 {[%cal Ra4b5]} bxa4 25. Nxa4) 24... Nxd4 (24... Kb8 $11 {is superior.}) 25. Bxd4 $14 Rg8 26. Rd3 {[%cal Oc3d5] aiming for Nd5!} Kb8 27. Rg3 Ne5 28. Be2 Nc4 29. Bd3 Ne5 30. Be2 Nc4 31. Ka2 Qd8 (31... Ne5 $11) 32. Bxc4 $16 bxc4 33. Be3 {White is more active.} Qc7 {[#]} (33... Rg7 $16 34. Qd1 Bf6) 34. Qf1 $1 $18 Rg7 35. Rf3 Bd8 $2 (35... Qd8 36. Rxf7 Rxf7 37. Qxf7 Bxg5) 36. Qh3 {Qh8 is the strong threat.} Qe7 $2 (36... Bc8 37. Qh6 Rg8) 37. Qh8 Rg6 38. Bb6 {Weighted Error Value: White=0.15 (very precise) /Black=0.32} (38. Qh7 $142) 1-0